bitfinex-derivatives/quotes_ETHF0:USTF0_20250416
["timestamp","ask_amount","ask_price","bid_price","bid_amount"]
[1744783623137,1.2722,1572.2,1572.1,43.81628]
[1744783623345,2.9078,1572.2,1572.1,42.544]
[1744783623543,1.27228,1572.1,1572.0,18.15991278]
[1744783623844,2.90788,1572.1,1572.0,5.43955688]
[1744783624145,2.90788,1572.1,1572.0,40.80955688]
[1744783624347,6.11568,1572.1,1572.0,40.80955688]
[1744783624642,11.11568,1572.1,1572.0,0.00955688]
[1744783624849,1.2726,1571.7,1571.6,6.70265]
[1744783625035,1.2726,1571.7,1571.6,49.21345]
[1744783625231,1.2726,1571.7,1571.6,47.9408]
[1744783626842,1.2726,1571.7,1571.6,46.23]
[1744783627247,3.93252688,1571.8,1571.6,46.23]
[1744783627549,3.03532688,1571.8,1571.7,1.7108]
[1744783627934,1.28212688,1571.8,1571.7,1.7108]
[1744783628640,2.98122688,1571.8,1571.7,1.7108]
[1744783629947,1.28212688,1571.8,1571.7,2.9834]
[1744783630148,1.28212688,1571.8,1571.7,1.7108]
[1744783630649,2.98122688,1571.8,1571.7,1.7108]
[1744783631844,0.00955688,1571.8,1571.7,2.9834]
[1744783632051,0.00955688,1571.8,1571.7,8.888]
[1744783632349,1.27228,1572.1,1572.0,1.27232]
[1744783632542,1.27228,1572.1,1572.0,40.8]
[1744783635051,1.27228,1572.1,1572.0,42.07236]
[1744783635645,1.27228,1572.1,1572.0,40.8]
[1744783636147,1.27236,1572.0,1571.9,6.70437]
[1744783636449,6.38888,1572.0,1571.6,4.48047]
[1744783636749,1.27255,1571.8,1571.7,42.07259]
[1744783636951,2.5456,1571.9,1571.8,1.27252]
[1744783637152,3.21735688,1572.2,1572.1,1.27228]
[1744783637347,4.48959688,1572.2,1572.1,1.27228]
[1744783637551,4.48959688,1572.2,1572.0,1.27231]
[1744783637849,4.48959688,1572.2,1572.1,40.8]
[1744783638454,4.48959688,1572.2,1571.7,1.2726]
[1744783638455,1.2725,1571.9,1571.7,1.2726]
[1744783638848,1.27244,1571.9,1571.8,40.8]
[1744783639457,2.19414,1571.9,1571.8,40.8]
[1744783640860,7.19414,1571.9,1571.8,40.8]
[1744783642454,2.19414,1571.9,1571.8,42.07252]
[1744783642653,2.19414,1571.9,1571.8,40.8]
[1744783644157,1.27244,1571.9,1571.8,40.8]
[1744783644856,1.27252,1571.8,1571.7,1.6058]
[1744783645162,2.14022,1571.8,1571.7,1.6058]
[1744783645353,2.14022,1571.8,1571.7,42.4058]
[1744783646157,2.14022,1571.8,1571.7,40.8]
[1744783646158,5.34802,1571.8,1571.7,40.8]
[1744783648657,5.34802,1571.8,1571.5,5.44155688]
[1744783648658,1.27269,1571.6,1571.5,5.44155688]
[1744783648859,1.27269,1571.6,1571.5,5.43227481]
[1744783649169,1.27269,1571.6,1571.5,40.80027481]
[1744783650071,4.48049,1571.6,1571.5,40.80027481]
[1744783651071,4.48049,1571.6,1571.5,42.43617481]
[1744783653668,4.48049,1571.6,1571.5,0.00027481]
[1744783654068,6.18529,1571.6,1571.5,0.00027481]
[1744783656367,11.18529,1571.6,1571.5,0.00027481]
[1744783656975,6.18529,1571.6,1571.5,0.00027481]
[1744783664985,4.48049,1571.6,1571.5,1.27304481]
[1744783665189,1.27269,1571.6,1571.5,2.10714481]
[1744783665577,1.27269,1571.6,1571.5,0.00027481]
[1744783665786,3.80929,1571.6,1571.5,0.00027481]
[1744783666282,20.16229,1571.6,1571.5,0.00027481]
[1744783666483,3.18275,1571.1,1570.5,16.4859596]
[1744783666683,1.27335,1570.8,1570.7,1.27337]
[1744783666884,1.27333,1570.8,1570.7,41.6341]
[1744783667083,1.27333,1570.8,1570.7,46.6341]
[1744783668584,1.27333,1570.8,1570.7,41.6341]
[1744783669088,1.27341,1570.7,1570.6,0.00955688]
[1744783669280,4.52541,1570.7,1570.6,0.00955688]
[1744783669788,1.27374,1570.3,1570.2,8.4653096]
[1744783672785,1.27371,1570.4,1570.2,9.7391096]
[1744783672991,3.2078,1570.5,1570.2,9.7391096]
[1744783673291,3.2078,1570.4,1570.1,0.00955688]
[1744783673587,1.27382,1570.2,1570.1,0.00955688]
[1744783674590,4.48152,1570.4,1570.2,1.2738]
[1744783674795,4.48146,1570.4,1570.3,0.7966]
[1744783675293,1.27366,1570.4,1570.3,0.7966]
[1744783684391,1.27366,1570.4,1570.3,2.07034]
[1744783684697,1.27365,1570.5,1570.4,1.27366]
[1744783684897,1.27365,1570.5,1570.4,3.84166]
[1744783685702,1.27365,1570.5,1570.4,2.568]
[1744783688699,1.27356,1570.6,1570.5,1.27357]
[1744783689001,1.27356,1570.6,1570.5,1.7297]
[1744783690403,2.90366,1570.6,1570.5,1.7297]
[1744783691099,1.27358,1570.5,1570.4,0.8399]
[1744783691302,1.27366,1570.4,1570.3,5.404]
[1744783691497,1.27382,1570.2,1570.1,0.83265688]
[1744783691809,1.27382,1570.2,1570.1,41.63265688]
[1744783692107,1.27382,1570.2,1570.1,43.27105688]
[1744783693913,4.48162,1570.2,1570.1,40.80955688]
[1744783694105,5.29412,1570.2,1570.1,40.80955688]
[1744783696703,2.93591,1570.3,1570.1,42.48995688]
[1744783696903,1.27381,1570.3,1570.2,1.6804]
[1744783697105,1.27381,1570.3,1570.2,2.5568]
[1744783697913,1.27381,1570.3,1570.2,3.83062]
[1744783698103,1.27381,1570.3,1570.2,2.5568]
[1744783698505,4.48152,1570.4,1570.3,1.27374]
[1744783698706,1.27372,1570.4,1570.3,3.90804]
[1744783699209,1.27364,1570.5,1570.3,3.90804]
[1744783699409,1.27364,1570.5,1570.4,1.7588]
[1744783700407,1.27353,1570.6,1570.4,1.7588]
[1744783700712,1.27353,1570.6,1570.4,3.03239]
[1744783700914,1.27353,1570.6,1570.5,2.11108]
[1744783701113,8.18375,1570.6,1570.1,40.80955688]
[1744783701311,1.27382,1570.2,1570.1,40.80955688]
[1744783702209,3.71412,1570.2,1570.1,40.80955688]
[1744783702917,6.92192,1570.2,1570.1,40.80955688]
[1744783704424,16.5841,1570.2,1569.7,3.2078]
[1744783704717,1.27439,1569.5,1569.4,2.5025]
[1744783704915,1.27439,1569.5,1569.4,43.3025]
[1744783705311,2.95319,1569.5,1569.4,40.8]
[1744783705516,1.27447,1569.4,1569.3,1.6795]
[1744783705718,6.16107,1569.4,1569.3,1.68905688]
[1744783705917,6.49245987,1569.4,1569.3,42.48905688]
[1744783706116,1.27445,1569.5,1569.3,42.48905688]
[1744783706418,1.27445,1569.5,1569.4,1.6795]
[1744783707721,3.84092688,1569.6,1569.4,2.95397]
[1744783708016,1.28388688,1569.6,1569.4,3.78072]
[1744783708218,0.00955688,1569.6,1569.5,7.9469]
[1744783708419,1.28386688,1569.6,1569.5,7.9469]
[1744783708617,0.00955688,1569.6,1569.5,9.22129]
[1744783709114,1.28386688,1569.6,1569.5,7.9469]
[1744783709925,1.28386688,1569.6,1569.5,48.7469]
[1744783710515,1.28386688,1569.6,1569.5,40.8]
[1744783710721,1.27447,1569.4,1569.3,0.00955688]
[1744783710921,4.8119398,1569.4,1569.3,6.88e-06]
[1744783711114,9.8119398,1569.4,1569.3,6.88e-06]
[1744783711316,11.55560323,1569.4,1569.3,6.88e-06]
[1744783711515,11.55537225,1569.4,1569.3,6.88e-06]
[1744783711818,11.22617,1569.4,1569.3,6.88e-06]
[1744783712019,6.55529373,1569.4,1569.3,6.88e-06]
[1744783712214,11.22617,1569.4,1569.3,6.88e-06]
[1744783712524,11.55507046,1569.4,1569.3,6.88e-06]
[1744783715021,6.55507046,1569.4,1569.3,6.88e-06]
[1744783715222,6.22617,1569.4,1569.3,6.88e-06]
[1744783716125,6.22617,1569.4,1569.3,1.66300688]
[1744783717524,1.27447,1569.4,1569.3,1.66300688]
[1744783717827,4.49171688,1569.6,1569.5,1.27439]
[1744783718019,1.28391688,1569.6,1569.4,6.2493]
[1744783718219,0.00955688,1569.6,1569.4,7.9123]
[1744783718418,1.28391688,1569.6,1569.5,2.93739]
[1744783718824,0.00955688,1569.6,1569.5,7.93739]
[1744783719025,0.00955688,1569.6,1569.5,2.93739]
[1744783719227,1.28386688,1569.6,1569.5,2.93739]
[1744783720326,1.28386688,1569.6,1569.5,1.663]
[1744783720531,1.28386688,1569.6,1569.5,2.93739]
[1744783722332,1.28386688,1569.6,1569.5,1.663]
[1744783722533,0.00955688,1569.6,1569.5,11.14519]
[1744783723129,1.28386688,1569.6,1569.5,7.93739]
[1744783723631,1.28386688,1569.6,1569.5,6.663]
[1744783723832,1.28386688,1569.6,1569.5,7.93739]
[1744783724232,0.00955688,1569.6,1569.5,7.93739]
[1744783724936,0.00955688,1569.6,1569.5,2.93739]
[1744783725449,1.28386688,1569.6,1569.5,2.93739]
[1744783726244,0.00955688,1569.6,1569.5,2.93739]
[1744783726646,1.28386688,1569.6,1569.5,2.93739]
[1744783727243,0.00955688,1569.6,1569.5,2.93739]
[1744783727453,1.28386688,1569.6,1569.5,2.93739]
[1744783728549,0.00955688,1569.6,1569.5,2.93739]
[1744783729551,1.28386688,1569.6,1569.5,2.93739]
[1744783729944,0.00955688,1569.6,1569.5,2.93739]
[1744783730550,1.28386688,1569.6,1569.5,2.93739]
[1744783731051,0.00955688,1569.6,1569.5,2.93739]
[1744783731349,1.28386688,1569.6,1569.5,2.93739]
[1744783732244,0.00955688,1569.6,1569.5,2.93739]
[1744783734048,1.28386688,1569.6,1569.5,2.93739]
[1744783734248,0.00955688,1569.6,1569.5,2.93739]
[1744783734549,1.61732216,1569.6,1569.5,1.663]
[1744783734747,4.82512216,1569.6,1569.5,1.663]
[1744783735143,11.04881216,1569.6,1569.3,6.88e-06]
[1744783735447,4.48227,1569.4,1569.3,6.88e-06]
[1744783735648,4.81572528,1569.4,1569.3,6.88e-06]
[1744783735851,9.81572528,1569.4,1569.3,6.88e-06]
[1744783737250,9.81453248,1569.4,1569.3,6.88e-06]
[1744783739454,1.27488,1568.9,1568.8,49.2653096]
[1744783739644,4.81494248,1568.9,1568.8,49.2653096]
[1744783740342,4.81494248,1568.9,1568.8,40.8]
[1744783740949,5.61140951,1568.9,1568.8,40.8]
[1744783741651,1.27496,1568.8,1568.7,0.00955688]
[1744783741949,4.18448951,1568.8,1568.7,0.00955688]
[1744783742248,4.18448951,1568.8,1568.7,40.80955688]
[1744783743552,4.18474027,1568.8,1568.7,40.80955688]
[1744783743853,4.1851802,1568.8,1568.7,40.80955688]
[1744783744447,3.85286,1568.8,1568.7,40.80955688]
[1744783744640,4.18501863,1568.8,1568.7,40.80955688]
[1744783744843,3.85286,1568.8,1568.7,40.80955688]
[1744783745255,4.0049,1568.9,1568.7,40.80955688]
[1744783745256,1.27485,1569.0,1568.7,45.80955688]
[1744783745449,4.8647,1569.1,1568.8,0.8312]
[1744783745650,4.8647,1569.1,1568.9,1.27481]
[1744783745651,1.27482,1569.0,1568.9,1.27481]
[1744783745952,1.27482,1569.0,1568.9,3.02511]
[1744783746253,1.27482,1569.0,1568.9,1.7503]
[1744783746655,3.01702,1569.0,1568.9,1.7503]
[1744783748144,1.7422,1569.0,1568.7,40.80955688]
[1744783748351,1.27496,1568.8,1568.7,47.81605688]
[1744783748553,1.27496,1568.8,1568.7,49.09109688]
[1744783749357,3.84304,1568.9,1568.7,49.09109688]
[1744783749752,3.84304,1568.9,1568.8,1.743]
[1744783749957,1.27496,1568.8,1568.7,46.18855688]
[1744783750249,6.19806,1568.8,1568.7,46.18855688]
[1744783750450,3.79476,1568.8,1568.7,46.18855688]
[1744783752250,7.00256,1568.8,1568.7,46.18855688]
[1744783752453,7.00256,1568.8,1568.7,40.80955688]
[1744783752758,12.33445505,1568.8,1568.7,0.00955688]
[1744783753060,12.33452194,1568.8,1568.7,0.00955688]
[1744783753457,7.33452194,1568.8,1568.7,0.00955688]
[1744783756463,7.33624844,1568.8,1568.7,0.00955688]
[1744783758255,7.33574227,1568.8,1568.7,0.00955688]
[1744783758452,3.18777,1568.7,1568.2,40.8]
[1744783758653,1.27536,1568.3,1568.2,40.8]
[1744783759259,1.27536,1568.3,1568.0,1.27555]
[1744783759567,1.27585,1567.7,1567.6,11.6731096]
[1744783759765,1.27585,1567.7,1567.6,10.1765096]
[1744783760065,1.27585,1567.7,1567.6,50.9765096]
[1744783760265,6.17092,1567.8,1567.6,50.9765096]
[1744783760458,6.17092,1567.8,1567.7,1.7112]
[1744783760660,4.48362,1567.8,1567.7,1.7112]
[1744783760866,1.27585,1567.7,1567.6,49.2653096]
[1744783761161,1.27585,1567.7,1567.6,50.1072096]
[1744783762068,1.27585,1567.7,1567.6,49.2653096]
[1744783762265,19.61461695,1567.7,1567.6,7.1329996]
[1744783762462,1.27593,1567.6,1567.5,11.90258116]
[1744783762662,6.50549695,1567.6,1567.5,11.18586193]
[1744783762959,6.50522939,1567.6,1567.5,11.18586193]
[1744783763273,8.0856,1567.6,1567.2,42.45]
[1744783763569,1.27618,1567.3,1567.2,42.45]
[1744783763767,1.27618,1567.3,1567.2,1.65]
[1744783763966,2.96408,1567.3,1567.2,1.65]
[1744783764167,1.6879,1567.3,1566.9,8.27665]
[1744783764367,1.27625,1567.3,1567.1,1.2763]
[1744783764669,1.27625,1567.3,1567.2,1.65]
[1744783765167,0.00955688,1567.4,1567.2,6.65]
[1744783765371,1.27608,1567.5,1567.3,3.02465]
[1744783765671,1.27601,1567.5,1567.4,1.7485]
[1744783765969,1.27601,1567.5,1567.4,42.5485]
[1744783767368,2.98881,1567.5,1567.4,42.5485]
[1744783767570,0.00955688,1567.6,1567.5,1.27601]
[1744783767771,0.00955688,1567.6,1567.5,12.04811]
[1744783767962,1.27566,1568.0,1567.8,1.27573]
[1744783768169,1.27566,1568.0,1567.9,1.7104]
[1744783771467,4.48346,1568.0,1567.9,1.7104]
[1744783771668,4.81683967,1568.0,1567.9,1.7104]
[1744783772467,1.27577,1567.8,1567.6,0.8001]
[1744783772674,3.2078,1567.7,1567.4,46.169]
[1744783772975,1.2761,1567.4,1567.3,0.00955688]
[1744783773365,2.9875,1567.4,1567.3,40.80955688]
[1744783775079,1.2761,1567.4,1567.3,40.80955688]
[1744783775675,2.9987,1567.4,1567.3,40.80955688]
[1744783777670,2.9987,1567.4,1567.3,0.00955688]
[1744783779276,1.2761,1567.4,1567.3,0.00955688]
[1744783780077,3.19115,1567.0,1566.5,3.19208]
[1744783780273,1.2765,1566.9,1566.8,1.7662]
[1744783780574,1.2765,1566.9,1566.8,42.5662]
[1744783781379,2.9979,1566.9,1566.8,42.5662]
[1744783782080,1.2765,1566.9,1566.8,42.5662]
[1744783783073,1.2765,1566.9,1566.8,47.5662]
[1744783783971,1.2765,1566.9,1566.8,48.84278]
[1744783784178,1.28602688,1567.0,1566.9,1.2765]
[1744783784367,1.28597688,1567.0,1566.9,1.7658]
[1744783784676,1.28597688,1567.0,1566.9,6.7658]
[1744783784876,1.28597688,1567.0,1566.9,8.0423]
[1744783785479,1.28597688,1567.0,1566.9,3.0423]
[1744783787479,0.00955688,1567.0,1566.9,3.0423]
[1744783787877,3.19011,1567.5,1567.2,1.27625]
[1744783788083,4.82016,1567.6,1567.2,1.27625]
[1744783788280,1.27618,1567.4,1567.3,1.596]
[1744783788580,1.6107715,1567.4,1567.3,1.596]
[1744783788875,9.1438,1567.7,1567.3,6.596]
[1744783789177,1.27593,1567.6,1567.5,1.27596]
[1744783789386,0.00955688,1567.7,1567.6,1.27593]
[1744783789980,1.27556,1568.1,1568.0,1.27561]
[1744783790176,1.6102161,1568.1,1567.9,5.371]
[1744783790377,1.27556,1568.1,1568.0,42.4995]
[1744783790572,1.27541,1568.3,1568.1,1.27547]
[1744783790880,1.27541,1568.3,1568.2,1.6995]
[1744783791184,1.60987537,1568.3,1568.2,1.6995]
[1744783791374,1.27541,1568.3,1568.2,1.6995]
[1744783791576,12.91266329,1568.4,1568.2,2.97491]
[1744783791877,0.00955688,1568.4,1568.3,1.27536]
[1744783792078,0.00955688,1568.4,1568.3,4.48316]
[1744783792283,0.00955688,1568.4,1568.3,11.16066]
[1744783792581,1.27501,1568.8,1568.3,50.6853]
[1744783792783,1.6993,1569.0,1568.6,1.2751]
[1744783792981,1.27501,1568.8,1568.6,6.6451]
[1744783793280,1.27501,1568.8,1568.7,1.5942]
[1744783793978,3.1876,1568.7,1568.3,42.4775]
[1744783794179,1.27528,1568.4,1568.3,40.8]
[1744783795087,1.27512,1568.6,1568.4,1.27526]
[1744783795275,1.2752,1568.5,1568.3,49.1043]
[1744783795580,1.2752,1568.5,1568.4,1.66]
[1744783796683,1.27528,1568.4,1568.3,40.8]
[1744783796889,1.27528,1568.4,1568.3,42.46]
[1744783799084,2.93668,1568.4,1568.3,42.46]
[1744783800583,2.93668,1568.4,1568.3,40.8]
[1744783802686,3.74488,1568.4,1568.3,40.8]
[1744783802983,1.27536,1568.3,1568.2,0.00955688]
[1744783803184,6.22276,1568.3,1568.2,0.00955688]
[1744783803384,6.22276,1568.3,1568.2,40.80955688]
[1744783805490,6.22276,1568.3,1568.0,5.355]
[1744783805491,1.27553,1568.1,1568.0,5.355]
[1744783805690,1.27577,1567.8,1567.7,2.89535]
[1744783805987,1.27584,1567.8,1567.6,5.355]
[1744783806188,1.27585,1567.7,1567.6,8.25038]
[1744783806589,1.27585,1567.7,1567.6,54.05038]
[1744783806979,3.00158688,1567.8,1567.6,52.7745]
[1744783807184,3.00158688,1567.8,1567.7,1.6195]
[1744783807586,1.28538688,1567.8,1567.7,2.89535]
[1744783807786,0.00955688,1567.8,1567.7,2.89535]
[1744783807983,1.27561,1568.0,1567.9,1.27564]
[1744783808188,4.87227,1568.3,1567.7,2.89535]
[1744783808388,4.87227,1568.3,1567.7,1.6195]
[1744783808589,1.27569,1567.9,1567.8,42.0757]
[1744783808984,1.27569,1567.9,1567.8,47.0757]
[1744783809191,1.27569,1567.9,1567.8,46.155]
[1744783809391,1.27569,1567.9,1567.8,47.43077]
[1744783809594,1.28521688,1568.0,1567.8,46.155]
[1744783809785,1.28521688,1568.0,1567.9,1.7251]
[1744783810294,1.27569,1567.9,1567.8,46.155]
[1744783810482,2.95339,1567.9,1567.8,46.155]
[1744783811197,1.27569,1567.9,1567.8,47.43077]
[1744783811496,1.27569,1567.9,1567.8,46.155]
[1744783812996,0.00955688,1568.0,1567.8,46.155]
[1744783813293,1.28516688,1568.0,1567.9,1.7136]
[1744783814398,3.00786688,1568.0,1567.9,1.7136]
[1744783814989,1.27569,1567.9,1567.8,46.155]
[1744783815191,2.99839,1567.9,1567.8,46.155]
[1744783815498,2.99839,1567.9,1567.8,47.8837]
[1744783816097,2.99839,1567.9,1567.8,46.155]
[1744783816697,2.99839,1567.9,1567.8,47.43077]
[1744783817292,2.99839,1567.9,1567.8,46.155]
[1744783818101,2.99839,1567.9,1567.8,47.43077]
[1744783818300,2.99839,1567.9,1567.8,49.08937]
[1744783818504,2.99839,1567.9,1567.8,47.8136]
[1744783819296,2.99839,1567.9,1567.8,49.08937]
[1744783819502,2.99839,1567.9,1567.8,47.8136]
[1744783820202,3.33359373,1567.9,1567.8,47.8136]
[1744783820402,2.99839,1567.9,1567.8,49.08937]
[1744783821302,1.27569,1567.9,1567.8,49.08937]
[1744783822104,1.27569,1567.9,1567.8,47.8136]
[1744783822304,1.61086549,1567.9,1567.8,47.8136]
[1744783822708,1.61095504,1567.9,1567.8,47.8136]
[1744783823307,1.61095504,1567.9,1567.8,49.08937]
[1744783824108,0.33526504,1567.9,1567.8,49.08937]
[1744783824303,0.00955688,1568.0,1567.9,1.27569]
[1744783824606,1.27543,1568.3,1568.0,3.18903]
[1744783824799,1.27534,1568.4,1568.3,1.27536]
[1744783825106,2.97149,1568.6,1568.4,1.27522]
[1744783825308,2.97149,1568.6,1568.5,1.7281]
[1744783825509,3.30698305,1568.6,1568.5,1.7281]
[1744783827307,3.30698305,1568.6,1568.4,5.36455688]
[1744783827308,1.2752,1568.5,1568.4,5.36455688]
[1744783827613,6.1972,1568.5,1568.4,0.00955688]
[1744783827914,6.53282955,1568.5,1568.4,0.00955688]
[1744783828106,6.53294935,1568.5,1568.4,0.00955688]
[1744783828307,11.53294935,1568.5,1568.4,0.00955688]
[1744783828511,1.27561,1568.0,1567.9,1.6653]
[1744783828714,1.61135935,1568.0,1567.9,1.6653]
[1744783829211,3.33235935,1568.0,1567.9,1.6653]
[1744783831316,3.33257159,1568.0,1567.9,1.6653]
[1744783831913,3.33263919,1568.0,1567.9,1.6653]
[1744783833119,3.33275832,1568.0,1567.9,1.6653]
[1744783834615,0.33614832,1568.0,1567.9,2.94099]
[1744783834810,0.33614832,1568.0,1567.9,9.14359]
[1744783835016,1.61175832,1568.0,1567.9,7.8679]
[1744783835415,1.61175832,1568.0,1567.9,9.14359]
[1744783835825,1.61175832,1568.0,1567.9,7.8679]
[1744783836919,1.61186142,1568.0,1567.9,9.14359]
[1744783838229,1.61186142,1568.0,1567.9,7.8679]
[1744783838523,1.61189596,1568.0,1567.9,7.8679]
[1744783839324,3.37129596,1568.0,1567.9,7.8679]
[1744783839526,1.61189596,1568.0,1567.9,9.14359]
[1744783839825,0.33628596,1568.0,1567.9,9.14359]
[1744783840122,1.27554,1568.1,1568.0,1.27561]
[1744783840321,1.61172623,1568.1,1568.0,3.75891]
[1744783842125,1.61165631,1568.1,1568.0,2.4833]
[1744783843127,1.61165631,1568.1,1568.0,1.6799]
[1744783843429,1.61160078,1568.1,1568.0,1.6799]
[1744783843617,1.27561,1568.0,1567.9,3.2078]
[1744783843912,1.27561,1568.0,1567.8,42.08526688]
[1744783843913,1.27569,1567.9,1567.8,42.08526688]
[1744783844118,1.61175078,1567.9,1567.8,42.08526688]
[1744783844420,1.61179829,1567.9,1567.8,42.08526688]
[1744783845128,1.61179829,1567.9,1567.8,43.83246688]
[1744783845720,0.33610829,1567.9,1567.8,43.83246688]
[1744783846021,1.6118099,1567.9,1567.8,43.83246688]
[1744783846529,0.3361199,1567.9,1567.8,43.83246688]
[1744783847621,0.33613593,1567.9,1567.8,43.83246688]
[1744783848129,1.61182593,1567.9,1567.8,43.83246688]
[1744783848323,0.33613593,1567.9,1567.8,43.83246688]
[1744783848825,1.61182593,1567.9,1567.8,43.83246688]
[1744783849027,0.33613593,1567.9,1567.8,43.83246688]
[1744783849223,1.27551,1568.2,1568.1,1.27553]
[1744783849530,0.33608916,1568.2,1568.1,1.27553]
[1744783849823,1.27543,1568.3,1568.2,1.27544]
[1744783850026,0.33606356,1568.3,1568.2,1.27544]
[1744783850223,8.41996641,1568.4,1568.3,1.27536]
[1744783850423,8.41996641,1568.4,1568.3,6.61736]
[1744783850623,8.41996641,1568.4,1568.3,9.82516]
[1744783850827,1.37174394,1568.4,1568.3,14.82516]
[1744783854534,1.37174394,1568.4,1568.3,9.82516]
[1744783855031,1.37174394,1568.4,1568.3,6.61736]
[1744783855427,2.64702394,1568.4,1568.3,6.61736]
[1744783855628,4.35612394,1568.4,1568.3,7.0679]
[1744783856230,3.08084394,1568.4,1568.3,6.61736]
[1744783857032,2.98438,1568.4,1568.3,6.61736]
[1744783857437,2.98438,1568.4,1568.3,5.342]
[1744783857625,1.7091,1568.4,1568.3,6.61736]
[1744783857830,2.98438,1568.4,1568.3,8.35116]
[1744783859340,1.7091,1568.4,1568.3,8.35116]
[1744783859937,2.98438,1568.4,1568.3,8.35116]
[1744783860743,1.7091,1568.4,1568.3,8.35116]
[1744783861240,2.13915,1568.5,1568.4,1.27528]
[1744783861540,3.75045,1568.5,1568.4,1.6133]
[1744783862040,4.08519435,1568.5,1568.4,1.6133]
[1744783863141,1.27528,1568.4,1568.3,5.342]
[1744783863344,1.6902,1568.4,1568.3,8.28326]
[1744783863640,1.20189305,1568.6,1568.5,1.2752]
[1744783863832,2.89209305,1568.6,1568.5,1.2752]
[1744783864229,4.16721305,1568.6,1568.5,2.9411]
[1744783864432,4.16721305,1568.6,1568.5,1.6659]
[1744783864634,4.16721305,1568.6,1568.5,2.9411]
[1744783864836,4.16721305,1568.6,1568.5,1.6659]
[1744783865338,4.50196809,1568.6,1568.5,1.6659]
[1744783865839,0.33549305,1568.6,1568.5,2.9411]
[1744783866041,0.33549305,1568.6,1568.5,6.1489]
[1744783866240,0.33549305,1568.6,1568.5,11.1489]
[1744783866440,0.33549305,1568.6,1568.5,11.9551]
[1744783866644,0.33549305,1568.6,1568.5,52.7551]
[1744783867335,12.06774722,1569.3,1569.2,1.27463]
[1744783868138,13.34229722,1569.3,1569.2,1.5961]
[1744783868338,1.27463,1569.2,1569.1,5.326]
[1744783868534,2.93753,1569.2,1569.1,5.33555688]
[1744783870835,2.93753,1569.2,1569.1,6.61026688]
[1744783870836,1.6629,1569.2,1569.1,6.61026688]
[1744783871937,2.93753,1569.2,1569.1,6.61026688]
[1744783872138,1.6629,1569.2,1569.1,6.61026688]
[1744783873440,1.62625688,1569.4,1569.3,1.27455]
[1744783874045,3.31655688,1569.4,1569.3,1.27455]
[1744783874246,0.00955688,1569.4,1569.3,1.27455]
[1744783874646,0.00955688,1569.4,1569.3,7.06785]
[1744783875049,0.00955688,1569.4,1569.3,47.86785]
[1744783875240,0.00955688,1569.4,1569.3,52.86785]
[1744783879949,0.00955688,1569.4,1569.3,47.86785]
[1744783886857,0.00955688,1569.4,1569.3,44.66005]
[1744783890559,0.00955688,1569.4,1569.3,47.86785]
[1744783896765,2.4345,1569.7,1569.6,1.27431]
[1744783896956,0.8081,1569.7,1569.6,6.58231]
[1744783897366,0.8081,1569.7,1569.6,47.38231]
[1744783897577,2.08233,1569.7,1569.6,47.38231]
[1744783897777,10.29013,1569.7,1569.6,46.108]
[1744783900781,10.29013,1569.7,1569.6,47.38231]
[1744783901684,10.29013,1569.7,1569.6,46.108]
[1744783902081,10.29013,1569.7,1569.6,47.38231]
[1744783904783,10.29013,1569.7,1569.6,46.108]
[1744783904977,5.29013,1569.7,1569.6,46.108]
[1744783905178,5.29013,1569.7,1569.6,47.38231]
[1744783905987,5.29013,1569.7,1569.6,46.108]
[1744783907089,5.29013,1569.7,1569.6,47.38231]
[1744783907585,0.8081,1569.7,1569.6,47.38231]
[1744783908584,0.8081,1569.7,1569.6,49.94681]
[1744783908982,2.08233,1569.7,1569.6,47.38231]
[1744783909585,0.8081,1569.7,1569.6,47.38231]
[1744783909774,2.08233,1569.7,1569.6,47.38231]
[1744783911985,2.08233,1569.7,1569.6,46.108]
[1744783912582,2.08233,1569.7,1569.6,47.38231]
[1744783912886,2.08233,1569.7,1569.6,46.108]
[1744783913479,2.08233,1569.7,1569.6,47.38231]
[1744783914183,3.70373,1569.7,1569.6,46.108]
[1744783914884,2.4295,1569.7,1569.6,47.38231]
[1744783915992,3.70373,1569.7,1569.6,47.38231]
[1744783918293,3.70373,1569.7,1569.6,46.108]
[1744783918894,3.70373,1569.7,1569.6,5.308]
[1744783919099,1.27455,1569.3,1569.2,9.26063378]
[1744783919298,1.27455,1569.3,1569.2,16.31983378]
[1744783919495,1.27455,1569.3,1569.2,58.39440378]
[1744783919691,2.4895,1569.4,1569.3,1.27455]
[1744783919891,5.936,1569.7,1569.5,1.27433]
[1744783920102,2.96024,1569.7,1569.6,1.27431]
[1744783920291,1.27424,1569.7,1569.6,2.494]
[1744783920498,1.27424,1569.7,1569.6,43.294]
[1744783920698,2.08024,1569.7,1569.6,42.4426]
[1744783920891,6.98104,1569.7,1569.6,42.4426]
[1744783921092,3.77324,1569.7,1569.6,40.8]
[1744783921287,1.27439,1569.5,1569.4,1.27439]
[1744783921492,1.27439,1569.5,1569.4,2.91699]
[1744783921694,1.27439,1569.5,1569.4,43.71706]
[1744783921895,1.27439,1569.5,1569.4,42.4426]
[1744783922092,2.08939,1569.5,1569.4,42.4426]
[1744783922604,5.29719,1569.5,1569.4,40.8]
[1744783923403,2.08939,1569.5,1569.4,42.07447]
[1744783923604,1.693,1569.6,1569.5,1.27439]
[1744783923796,1.693,1569.6,1569.5,2.97029]
[1744783923996,1.693,1569.6,1569.5,9.11329]
[1744783924198,2.08026,1569.7,1569.6,1.27431]
[1744783924399,3.67516,1569.7,1569.6,2.97021]
[1744783924598,3.67516,1569.7,1569.6,1.6959]
[1744783925295,1.27431,1569.6,1569.5,6.143]
[1744783925491,6.07701,1569.6,1569.5,5.293]
[1744783925802,11.07701,1569.6,1569.5,5.293]
[1744783925996,1.27455,1569.3,1569.2,14.52673378]
[1744783926191,1.27455,1569.3,1569.2,15.80136378]